Cogmind - Beta 17 @@@ ROGUE MODE // 2026.07.03 @ 09:30:03 Player: ToBeDefined Result: Smashed by cave-in Performance ------------- Evolutions (0) 0 Regions Visited (1) 200 Robots Destroyed (19) 95 Value Destroyed (346) 346 Prototype IDs (2) 40 Alien Tech Used (0) 0 Bonus (0) 0 TOTAL SCORE: 681 Bonus ------- None Cogmind --------- Core Integrity 0/250 Matter 260/300 Energy 100/100 System Corruption 10% Temperature Cool (0) Movement Treading (320) Ox2 Location -10/Materials Parts ------- > --- POWER (1) -------- (None) > --- PROPULSION (2) --- Light Treads > --- UTILITY (2) ------ Heat Sink High-capacity Storage Unit > --- WEAPON (2) ------- Spread Laser Mining Laser > --- INVENTORY (20) --- Ion Engine Ion Engine Light Treads Aluminum Leg Aluminum Leg Aluminum Leg Aluminum Leg Heat Sink Heat Sink Huge Storage Unit Small Laser Particle Gun Spread Laser Spread Laser Spread Laser Light Assault Rifle Light Assault Rifle Light Assault Rifle Grenade Launcher Maul Peak State ------------ > --- POWER ------------ Ion Engine > --- PROPULSION ------- Light Treads Light Treads > --- UTILITY ---------- Heat Sink High-capacity Storage Unit > --- WEAPON ----------- Spread Laser Spread Laser > --- INVENTORY -------- Ion Engine Ion Engine Light Treads Aluminum Leg Aluminum Leg Aluminum Leg Aluminum Leg Heat Sink Heat Sink Medium Storage Unit Huge Storage Unit ECM Suite Particle Gun Spread Laser Spread Laser Light Assault Rifle Light Assault Rifle Grenade Launcher Mining Laser Maul [Rating: 11] Favorites ----------- Power Ion Engine Engine Ion Engine Propulsion Light Treads Treads Light Treads Leg Aluminum Leg Utility Heat Sink Device Heat Sink Storage Small Storage Unit Weapon Light Assault Rifle Energy Gun Spread Laser Ballistic Gun Light Assault Rifle Special Weapon Mining Laser Build | -11 -10 ------- Run | Yrd Mat Slots Evolved . | . . Power . | . . Propulsion . | . . Utility . | . . Weapon . | . . Parts Attached 22 | 7 15 Power 3 | 1 2 Engine 3 | 1 2 Core . | . . Reactor . | . . Propulsion 6 | 2 4 Treads 3 | 2 1 Leg 3 | . 3 Wheel . | . . Hover . | . . Flight . | . . Utility 7 | 2 5 Device 3 | 1 2 Storage 4 | 1 3 Processor . | . . Hackware . | . . Protection . | . . Artifact . | . . Weapon 6 | 2 4 Energy Gun 2 | . 2 Energy Cannon . | . . Ballistic Gun 3 | 2 1 Ballistic Cannon . | . . Launcher . | . . Special Weapon 1 | . 1 Impact Weapon . | . . Slashing Weapon . | . . Piercing Weapon . | . . Special Melee Weapon . | . . Unidentified Prototypes . | . . Parts Lost 2 | . 2 Power 1 | . 1 Propulsion 1 | . 1 Utility . | . . Weapon . | . . Highest Loss Streak 2 | . 2 To Critical Strikes . | . . Average Backups 10 | 4 11 Power 1 | . 1 Propulsion 2 | 3 2 Utility 2 | . 2 Weapon 4 | 1 4 Tool/Special . | . . Unused Backups 21 | . 21 Power 2 | . 2 Propulsion 6 | . 6 Utility 4 | . 4 Weapon 9 | . 9 Tool/Special . | . . Average Slot Usage (%) 100 | . 100 Engine 14 | . 14 Treads 24 | . 24 Leg 3 | . 3 Device 14 | . 14 Storage 14 | . 14 Energy Gun 2 | . 2 Ballistic Gun 25 | . 25 Peak Build Rating 11 | 8 11 Average Rating 7 | 6 7 On Entrance 4 | . 8 Avg Prop Armor Cover (%) . | . . Naked Turns . | . . Heaviest Build 52 | 11 52 Greatest Support 40 | 40 40 Greatest Overweight (x) 1 | . 1 Average Overweight (x) . | . . Largest Inventory Capacity 25 | 8 25 Average Capacity 12 | 7 13 Most Carried 20 | 8 20 Average Carried 10 | 5 11 Final Capacity 20 | 8 20 Final Carried 20 | 8 20 Class Distribution -------------------- 88% | Mutant 11% | Scavenger-Mutant Dominant Class ---------------- Mutant | -10/Materials Resources | -11 -10 ----------- Run | Yrd Mat Matter Collected 574 | 300 274 Remotely . | . . Salvage Created 672 | 165 507 Parts 46 | 8 38 Haulers Intercepted 1 | . 1 Recyclers Shooed 2 | 1 1 Parts Field Recycled . | . . Retrieved Matter . | . . Parts Self-Destructed . | . . Prevented . | . . Parts Restored . | . . Kills | -11 -10 ------- Run | Yrd Mat Combat Hostiles Destroyed 13 | . 13 Guns 13 | . 13 Classes Destroyed 5 | 2 3 Tunneler 3 | 3 . Hauler 1 | . 1 Recycler 2 | 1 1 Swarmer 6 | . 6 Grunt 7 | . 7 Best Kill Streak 4 | 3 4 Combat Bots Only 4 | . 4 Max Kills in Single Turn 1 | 1 1 Gunslinging . | . . Exploded . | . . Melee . | . . Uniques/NPCs Destroyed . | . . Combat | -11 -10 -------- Run | Yrd Mat Hostile Shots Fired 64 | . 64 Missed 18 | . 18 Hits 46 | . 46 Projectile 46 | . 46 Critical Strikes 2 | . 2 Damage Taken 932 | . 932 Core 258 | . 258 Absorbed by Shields . | . . Core Remaining (%) 100 | 100 . Volleys Fired 64 | 15 49 Largest 2 | 2 2 Hottest 100 | 40 100 Shots Fired 126 | 30 96 Gun 124 | 30 94 Cannon . | . . Launcher . | . . Special 2 | . 2 Kinetic 124 | 30 94 Thermal 2 | . 2 Explosive . | . . Electromagnetic . | . . Robot Hit Streak 11 | 7 11 Robot Miss Streak 2 | 2 2 Penetration Max . | . . Secondary Targets 3 | . 3 Max Gunslinging Chain 1 | . 1 Shots Hit Robots 83 | 20 63 Core Hits 42 | 9 33 Critical Kills . | . . Critical Parts Destroyed . | . . Critical Strikes . | . . Melee Attacks . | . . Impact . | . . Slashing . | . . Piercing . | . . Sneak Attacks . | . . Combat Hostiles . | . . Follow-up Attacks . | . . Damage Inflicted 666 | 154 512 Guns 666 | 154 512 Cannons . | . . Explosions . | . . Melee . | . . Ramming . | . . Kinetic 666 | 154 512 Thermal . | . . Explosive . | . . Electromagnetic . | . . Impact . | . . Slashing . | . . Piercing . | . . Highest Corruption . | . . Average Corruption . | . . Corruption Purged . | . . Corruption Blocked . | . . Overload Shots . | . . Overflow Damage . | . . Projectiles . | . . Explosions . | . . Melee . | . . Knockbacks . | . . Impact . | . . Kinetic . | . . Secondary . | . . Self-Inflicted Damage . | . . Shots . | . . Rammed . | . . Targets Rammed . | . . Kicked . | . . Crushed . | . . Highest Temperature 33 | . 33 Average Temperature 20 | . 20 Received Heat Transfer 231 | . 231 Siege Activations . | . . Martial Activations . | . . Shielding Activations . | . . Robots Disrupted . | . . Combat Hostiles . | . . Robots Corrupted . | . . Combat Hostiles . | . . Parts Fried . | . . Impact Corruptions . | . . Robots Melted . | . . Combat Hostiles . | . . Parts Melted . | . . Heat Transferred . | . . Parts Sabotaged . | . . Parts Stolen . | . . Parts Stripped . | . . Power Chain Reactions . | . . Alert | -11 -10 ------- Run | Yrd Mat Maximum Alert Level . | . . Low Security (%) 100 | 100 100 Level 1 . | . . Level 2 . | . . Level 3 . | . . Level 4 . | . . Level 5 . | . . High Security . | . . Max Security . | . . Peak Influence 155 | 10 155 Initial . | . . Average 54 | 1 63 Influence Increases 349 | 20 329 Destroy 0b10 Robot/C 260 | . 260 Destroy 0b10 Robot/NC 30 | 20 10 Destroy Leader 52 | . 52 Successful Hack 5 | . 5 Destroy Structure 2 | . 2 Influence Decreases 349 | 20 329 Time Decay 347 | 20 327 Lost Part 2 | . 2 Squads Dispatched 2 | . 2 Investigation 1 | . 1 Extermination . | . . Reinforcement 1 | . 1 Assault . | . . Garrison . | . . Intercept . | . . Searches Triggered . | . . Construction Impeded . | . . Haulers Reinforced . | . . Active Scanning Responses . | . . Cargo Convoy Interrupts . | . . Stealth | -11 -10 --------- Run | Yrd Mat Distress Signals 1 | . 1 Communications Jammed . | . . Distress Signals . | . . Times Spotted 21 | . 21 Peak Tracking Total 4 | . 4 Tactical Retreats . | . . Traps | -11 -10 ------- Run | Yrd Mat Traps Triggered 3 | . 3 Indirectly . | . . Trap Hack Attempts . | . . Triggered . | . . Disarmed . | . . Reprogrammed . | . . Reused . | . . Traps Extracted . | . . Installed . | . . Triggered . | . . Machines | -11 -10 ---------- Run | Yrd Mat Machines Disabled . | . . Max in Single Turn . | . . Machines Repaired . | . . Machines Dismantled . | . . Machines Sabotaged . | . . Overloaded Fab Kills . | . . Hacking | -11 -10 --------- Run | Yrd Mat Machines Accessed 4 | . 4 Terminals 3 | . 3 Fabricators . | . . Repair Stations . | . . Recycling Units 1 | . 1 Scanalyzers . | . . Garrison Access . | . . Total Hacks 8 | . 8 Successful 3 | . 3 Failed 5 | . 5 Catastrophic . | . . Database Lockouts . | . . Manual 2 | . 2 Terminals 7 | . 7 Fabricators . | . . Repair Stations . | . . Recycling Units 1 | . 1 Scanalyzers . | . . Garrison Access . | . . Terminal Hacks 2 | . 2 Prototype ID Bank 1 | . 1 Hauler Manifests 1 | . 1 Fabricator Hacks . | . . Repair Station Hacks . | . . Recycling Unit Hacks 1 | . 1 Report Inventory 1 | . 1 Scanalyzer . | . . Garrison Access Hacks . | . . Unauthorized Hacks . | . . Terminals . | . . Fabricators . | . . Repair Stations . | . . Recycling Units . | . . Scanalyzers . | . . Garrison Access . | . . Data Cores Recovered . | . . Used . | . . Hacking Detections 3 | . 3 Full Trace Events . | . . Feedback Events . | . . Feedback Blocked . | . . Robot Schematics Acquired . | . . Robots Built . | . . Authchips . | . . Time . | . . Total Robot Build Rating . | . . Part Schematics Acquired . | . . Parts Built . | . . Authchips . | . . Time . | . . Total Part Build Rating . | . . Part Studies Acquired . | . . Parts Repaired . | . . Time . | . . Parts Recycled . | . . Recycled Matter . | . . Retrieved Matter . | . . Retrieved Components . | . . Parts Scanalyzed . | . . Part Schematics Acquired . | . . Parts Damaged . | . . Bothacking | -11 -10 ------------ Run | Yrd Mat Used RIF Installer . | . . Robots Hacked . | . . Non-combat . | . . Combat . | . . Robot Hacks Applied . | . . Relay Couplers Released . | . . Fabnet Peak Effective % . | . . Robots Rewired . | . . Allies Hacked . | . . Hacks Repelled . | . . Allies | -11 -10 -------- Run | Yrd Mat Total Allies . | . . Largest Group . | . . Highest-Rated Group . | . . Highest-Rated Ally . | . . Total Orders . | . . Ally Attacks . | . . Total Damage . | . . Kills . | . . Allies Corrupted . | . . Allies Melted . | . . Intel | -11 -10 ------- Run | Yrd Mat Active Infowar (turns) 130 | 89 41 Seismic 130 | 89 41 Robot Analysis Total . | . . Derelict Logs Recovered . | . . Drone Launches . | . . Drone Recoveries . | . . Exploration | -11 -10 ------------- Run | Yrd Mat Turns Passed 1053 | 164 889 Spaces Moved 434 | 70 364 Core 4 | 4 . Treads 362 | 66 296 Legs 68 | . 68 Wheels . | . . Hover . | . . Flight . | . . Fastest Speed 50 | 50 120 Average Speed 179 | 153 184 Slowest Speed 240 | 160 240 Overloaded Moves . | . . Propulsion Burnouts . | . . Robots Hopped . | . . Potential Cave-ins . | . . Cave-ins Triggered 1 | . 1 Exploration Rate (%) 31 | 5 57 Regions Visited 1 Branch Regions . Pre-discovered Areas . | . . Known Exits Taken . | . . Unknown Exits Taken 1 | 1 . Scrap Searched . | . . Spaces Dug 2 | . 2 Terrain Destroyed 2 | . 2 Melee . | . . Projectile 2 | . 2 AOE . | . . Terrain Rammed . | . . Walls Destroyed . | . . Machines Disabled . | . . Actions | -11 -10 --------- Run | Yrd Mat Total 607 | 99 508 Wait 23 | . 23 Move 433 | 69 364 Hop . | . . Pick Up 35 | 8 27 Fast Attach 8 | 7 1 Attach . | . . Detach . | . . Swap 22 | . 22 Drop 22 | . 22 Fire 64 | 15 49 Melee . | . . Ram . | . . Kick . | . . Crush . | . . Escape Stasis . | . . Rewire . | . . Trap . | . . Miscellaneous . | . . Route ------- -11/Scrapyard -10/Materials (discovered 2 exits: [*Mat] / [*Min]) History --------- Turn | Location | Event 7 | -11/Scrapyard | Discovered new exit (range 14) 165 | -11/Scrapyard | Entered Materials 304 | -10/Materials | Build established: Mutant 490 | -10/Materials | Discovered new exit (range 14) 675 | -10/Materials | Discovered new exit (range 10) 1055 | -10/Materials | Crushed by falling debris 1055 | -10/Materials | Smashed by cave-in Last Messages --------------- 00943_ Acquired Spread Laser. 00944_ Dropped Med. Storage Unit. 00944_ Acquired Med. Storage Unit. 00948_ Dropped Transport Network Coupler. 00948_ Acquired Spread Laser. 00952_ Dropped Sml. Laser. 00952_ Acquired Spread Laser. 00955_ Dropped Lgt. Assault Rifle. 00956_ Acquired Spread Laser. 00961_ Dropped Med. Storage Unit. 00964_ Acquired Lgt. Assault Rifle. 00965_ Dropped ECM Suite. 00968_ Acquired Sml. Laser. 01005_ Connecting with Terminal... 01055_ The unstable cave ceiling collapses. 01055_ Crushed by falling debris. 01055_ Lgt. Treads destroyed. 01055_ System corrupted by crushing effect (+5). 01055_ Ion Engine destroyed. 01055_ System corrupted by crushing effect (+5). Map ----- +----------------------------------------------------+ | ??# #???# [ +%[ #??????# ""#?????????? | | ??# #???# *#% #??????# ||#?????????? | | ??# #???# %#% #??????# < ""#?????????? | | ??# #???# = # #??????# ||#?????????? | | ??# #???# # #??????# ""#?????????? | | ??# #???#######+### #??????# "#?????????? | | ??# #??????# #??????## ####?????????? | | ??# ######## #???????# #????????????? | | ??# #???????# #????????????? | | ??# #########+##### +???????# #????????????? | | ??# #?# # #??????## ##???????????? | | ??# #?# """ # #?###### ######??????? | | ??# =!#?# """ # ######## | | ??# #?# """ "Y" # " # | | ?##% =### """ # ! # """"" | | ?# *! ############## ######## ##!%!# """""" | | ?# #?????????????????############## !!# """ " | | ?# #?????????????????# T ! #???# + | | ?# #?????????????????# #???# ##/##### | | ?# #?????????????????# #???# * % | | ?## ##?????????????????# #???##+######### | | ??# #??????????????????# #???? ???????? | | ??# #??????????????????# """#???? ???????? | | ??# #?????????????# ???# """#???? ???????? | | ??# #?????????????# ## """#???? ???????? | | ??# #?????????????# ;@ ! #??? ???????? | | ??# #?????????????# #######+################## | | ??#####?????????????# | | ????????????????????# ^ | | ????????????????????# | | ????????????????????####+#### ############### | | ????????????????????????????# !#?????????# | | ????????????????????????????#/// ! #?????????# | | ????????????????????????????#//// !#?????????# | | ????????????????????????????########?????????# " | | ?????????????????????????????????????????????# " | | ?????????????????????????????????????????????# " | | ?????????????????????????????????????????????# | | ?????????????????????????????????????????????# | | ?????????????????????????????????????????????##### | | | | | | | | | | | | | | | | | | | | | +----------------------------------------------------+ Best States ------------- Heat Dissipation 35 Energy Generation 10 Energy Capacity 250 Matter Stores 300 Matter Capacity 300 Sight Range 16 Terrain Scan Density 10 Evasion (%) 55 Recoil Reduction 2 Item Schematics ----------------- None Robot Schematics ------------------ None Fabricated ------------ Nothing Repaired ---------- Nothing Studied --------- None Alien Tech Used ----------------- None Achievements -------------- None Challenges ------------ None Game ------ Seed FluxBombardmentClaw Manual? 0 Play Time 00:11:40 Cumulative 41.6 hours Start 2026.07.03 @ 09:18:53 End 2026.07.03 @ 09:30:03 Sessions 1 Manual Loads 0 Difficulty Rogue Special Mode None Game No. 42 Rogue 42 Adventurer 0 Explorer 0 Win Type - Total 0 Types 0/0/0/0/0/0/0/0/0/0 Lore% 20 Gallery% 21 Achievement% 18 Wizard Run 0 Options --------- Layout 1 ASCII 0 Keyboard 0 Movement Mouse Keybinds 0 Fullscreen 1 Font 24/Smallcaps Map View 50x35 Zoom Use 0% Tactical HUD 1 Map Filters NONE Filters NONE Steam 1 RUN: 8107117c-7f45-4edb-bc4f-483bc35b12ff